[Event "Cape Verde Championship 2019"]
[Site "Ribeira Brava"]
[Date "2019.12.08"]
[Round "6.2"]
[White "Barros, Luis"]
[Black "Barros, Arlindo"]
[Result "1-0"]
[ECO "B55"]
[WhiteElo "1603"]
[BlackElo "1628"]
[Annotator "NA RC"]
[PlyCount "105"]
[EventDate "2019.12.05"]
[EventType "tourn"]
[EventCountry "KAP"]
[SourceTitle "playchess.com"]
[Source "ChessBase"]
[SourceQuality "1"]
[TimeControl "40/5400+30:1800+30"]

1. Nf3 {[%emt 0:00:47]} c5 {[%emt 0:00:25]} 2. e4 {[%emt 0:01:15]} d6 {[%emt 0:00:12]} 3. d4 {[%emt 0:00:38]} cxd4 {[%emt 0:00:09]} 4. Nxd4 {[%emt 0:00:44]} Nf6 {[%emt 0:00:08]} 5. Bd3 {[%emt 0:00:36]} Qb6 {[%emt 0:03:54]} 6. O-O {[%emt 0:02:38]} Nbd7 {[%emt 0:00:53]} 7. c3 {[%emt 0:01:07]} e6 {[%emt 0:01:36]} 8. Nd2 {[%emt 0:01:20]} Be7 {[%emt 0:00:47]} 9. Nc4 {[%emt 0:01:11]} Qd8 {[%emt 0:01:36]} 10. f4 {[%emt 0:00:18]} O-O {[%emt 0:00:45]} 11. e5 {[%emt 0:00:21]} dxe5 {[%emt 0:01:13]} 12. fxe5 {[%emt 0:00:22]} Nd5 {[%emt 0:01:01]} 13. Qh5 {[%emt 0:02:30]} g6 {[%emt 0:03:13]} 14. Qg4 {[%emt 0:00:40]} Nc5 {[%emt 0:02:10]} 15. Bc2 {[%emt 0:01:29]} f5 {[%emt 0:05:25]} 16. Qh3 {[%emt 0:03:18]} Bg5 {[%emt 0:19:56]} 17. b4 {[%emt 0:03:26]} Bxc1 {[%emt 0:03:37]} 18. Raxc1 {[%emt 0:00:57]} Nxb4 {[%emt 0:00:56]} 19. Rfd1 {[%emt 0:08:09]} Nd5 {[%emt 0:03:49]} 20. Qh6 {[%emt 0:05:30]} Qe7 {[%emt 0:02:32]} 21. Nd6 {[%emt 0:01:29]} Nxc3 {[%emt 0:12:51]} 22. Rf1 {[%emt 0:05:15]} Nxa2 {[%emt 0:14:09]} 23. Rce1 {[%emt 0:03:12]} Nb4 {[%emt 0:03:47]} 24. Rf3 {[%emt 0:02:05]} Nxc2 {[%emt 0:03:08]} 25. Nxc2 {[%emt 0:00:12]} b6 {[%emt 0:02:21]} 26. Nd4 {[%emt 0:00:21]} Bb7 {[%emt 0:01:11]} 27. Rh3 {[%emt 0:02:05]} Bd5 {[%emt 0:01:29]} 28. Nf3 {[%emt 0:04:23]} Bxf3 {[%emt 0:00:35]} 29. gxf3 {[%emt 0:00:49]} Qg7 {[%emt 0:00:51]} 30. Qg5 {[%emt 0:01:38]} Nd3 {[%emt 0:00:39]} 31. Re2 {[%emt 0:02:48]} Nxe5 {[%emt 0:00:24]} 32. f4 {[%emt 0:00:52]} Ng4 {[%emt 0:01:06]} 33. Rd3 {[%emt 0:06:51]} h6 {[%emt 0:04:36]} 34. Qh4 {[%emt 0:01:07]} Qf6 {[%emt 0:00:20]} 35. Qe1 {[%emt 0:05:05]} h5 {[%emt 0:00:10]} 36. Rxe6 {[%emt 0:01:11]} Qh8 {[%emt 0:02:39]} 37. Rxg6+ {[%emt 0:00:37]} Kh7 {[%emt 0:00:11]} 38. Rg5 {[%emt 0:01:51]} Kh6 {[%emt 0:00:34]} 39. Nxf5+ {[%emt 0:00:33]} Rxf5 {[%emt 0:00:05]} 40. Rxf5 {[%emt 0:01:17]} Rg8 {[%emt 0:00:11]} 41. Rxh5+ {[%emt 0:31:42]} Kxh5 {[%emt 0:31:26]} 42. Rh3+ {[%emt 0:00:19]} Kg6 {[%emt 0:00:15]} 43. Rxh8 {[%emt 0:01:44]} Rxh8 {[%emt 0:00:01]} 44. Qe6+ {[%emt 0:00:20]} Nf6 {[%emt 0:00:16]} 45. f5+ {[%emt 0:00:54]} Kg7 {[%emt 0:00:13]} 46. Qe7+ {[%emt 0:00:23]} Kg8 {[%emt 0:00:16]} 47. Qxf6 {[%emt 0:00:22]} Rh7 {[%emt 0:00:28]} 48. Qd8+ {[%emt 0:00:36]} Kg7 {[%emt 0:00:02]} 49. f6+ {[%emt 0:00:34]} Kg6 {[%emt 0:00:11]} 50. Qg8+ {[%emt 0:00:36]} Kh6 {[%emt 0:00:12]} 51. Kf2 {[%emt 0:01:23]} a5 {[%emt 0:06:36]} 52. h4 {[%emt 0:00:19]} a4 {[%emt 0:00:00]} 53. Qg5# {[%emt 0:00:31]} 1-0

[Event "Cape Verde Championship 2019"]
[Site "Ribeira Brava"]
[Date "2019.12.08"]
[Round "6.3"]
[White "Fernandes, Luis De Pina"]
[Black "Neves, Diogo Alexandre"]
[Result "1-0"]
[ECO "E92"]
[WhiteElo "1641"]
[BlackElo "1539"]
[Annotator "NA RC"]
[PlyCount "89"]
[EventDate "2019.12.05"]
[EventType "tourn"]
[EventCountry "KAP"]
[SourceTitle "playchess.com"]
[Source "ChessBase"]
[SourceQuality "1"]
[TimeControl "40/5400+30:1800+30"]

1. d4 {[%emt 1:30:30]} Nf6 {[%emt 0:02:10]} 2. c4 {[%emt 0:00:00]} g6 {[%emt 0:01:09]} 3. Nc3 {[%emt 0:00:00]} Bg7 {[%emt 0:00:08]} 4. Nf3 {[%emt 0:00:00]} d6 {[%emt 0:00:11]} 5. e4 {[%emt 0:00:00]} O-O {[%emt 0:00:38]} 6. Be2 {[%emt 0:00:00]} e5 {[%emt 0:01:56]} 7. dxe5 {[%emt 0:00:00]} dxe5 {[%emt 0:00:20]} 8. Qxd8 {[%emt 0:00:00]} Rxd8 {[%emt 0:00:09]} 9. Bg5 {[%emt 0:00:00]} Nbd7 {[%emt 0:06:47]} 10. Nd5 {[%emt 0:00:00]} b6 {[%emt 0:06:34]} 11. Nxc7 {[%emt 0:00:00]} Rb8 {[%emt 0:00:09]} 12. Nd5 {[%emt 0:00:00]} Re8 {[%emt 0:02:48]} 13. Nd2 {[%emt 0:00:00]} Bb7 {[%emt 0:04:44]} 14. f3 {[%emt 0:00:00]} Rbc8 {[%emt 0:03:57]} 15. Bd3 {[%emt 0:00:00]} Re6 {[%emt 0:02:25]} 16. Bxf6 {[%emt 0:00:00]} Bxf6 {[%emt 0:00:21]} 17. O-O {[%emt 0:00:00]} Bg7 {[%emt 0:02:19]} 18. Rfd1 {[%emt 0:00:00]} Nb8 {[%emt 0:03:44]} 19. Nf1 {[%emt 0:00:00]} Nc6 {[%emt 0:00:59]} 20. b3 {[%emt 0:00:00]} Nd4 {[%emt 0:01:12]} 21. Ng3 {[%emt 0:00:00]} Bf8 {[%emt 0:01:15]} 22. Kf1 {[%emt 0:00:00]} Kg7 {[%emt 0:02:22]} 23. Ne2 {[%emt 0:00:00]} Nxe2 {[%emt 0:00:29]} 24. Kxe2 {[%emt 0:00:00]} Bc5 {[%emt 0:00:21]} 25. Rac1 {[%emt 0:00:00]} Bxd5 {[%emt 0:00:40]} 26. cxd5 {[%emt 0:00:00]} Ree8 {[%emt 0:00:39]} 27. Bb5 {[%emt 0:00:00]} Red8 {[%emt 0:02:06]} 28. Ba6 {[%emt 0:00:00]} Rb8 {[%emt 0:10:44]} 29. a4 {[%emt 0:00:00]} Rd6 {[%emt 0:03:20]} 30. Rc4 {[%emt 0:00:00]} Rbd8 {[%emt 0:01:16]} 31. b4 {[%emt 0:00:00]} Bd4 {[%emt 0:00:42]} 32. Rc7 {[%emt 0:00:00]} R6d7 {[%emt 0:05:37]} 33. Rxd7 {[%emt 0:00:00]} Rxd7 {[%emt 0:00:36]} 34. Rc1 {[%emt 0:00:00]} Bb2 {[%emt 0:01:29]} 35. Rc6 {[%emt 0:00:00]} Ba3 {[%emt 0:01:26]} 36. Rc4 {[%emt 0:00:00]} Bb2 {[%emt 0:03:51]} 37. Kd3 {[%emt 0:00:00]} Kf8 {[%emt 0:00:40]} 38. Rc6 {[%emt 0:00:00]} Ke7 {[%emt 0:01:48]} 39. Bb5 {[%emt 0:00:00]} Kd8 {[%emt 0:02:44]} 40. Rc2 {[%emt 0:00:00]} Bd4 {[%emt 0:01:37]} 41. Bxd7 {[%emt 0:25:51]} Kxd7 {[%emt 0:30:09]} 42. b5 {[%emt 0:00:58]} Bc5 {[%emt 0:01:09]} 43. g3 {[%emt 0:02:01]} Kd6 {[%emt 0:00:15]} 44. f4 {[%emt 0:00:30]} Bd4 {[%emt 0:01:47]} 45. Rc8 {[%emt 0:22:40] Kxd5} 1-0

[Event "Cape Verde Championship 2019"]
[Site "Ribeira Brava"]
[Date "2019.12.09"]
[Round "7.2"]
[White "Neves, Diogo Alexandre"]
[Black "Monteiro, Antonio"]
[Result "1/2-1/2"]
[ECO "D02"]
[WhiteElo "1539"]
[BlackElo "1775"]
[Annotator "NA RC"]
[PlyCount "119"]
[EventDate "2019.12.05"]
[EventType "tourn"]
[EventCountry "KAP"]
[SourceTitle "playchess.com"]
[Source "ChessBase"]
[SourceQuality "1"]
[TimeControl "40/5400+30:1800+30"]

1. d4 {[%emt 0:00:00]} Nf6 {[%emt 0:00:00]} 2. Bf4 {[%emt 0:00:00]} c5 {[%emt 0:00:25]} 3. c3 {[%emt 0:00:19]} d5 {[%emt 0:01:02]} 4. e3 {[%emt 0:00:28]} Nc6 {[%emt 0:00:54]} 5. Nf3 {[%emt 0:00:52]} e6 {[%emt 0:00:14]} 6. Bd3 {[%emt 0:00:30]} Bd6 {[%emt 0:00:12]} 7. Bg3 {[%emt 0:00:41]} O-O {[%emt 0:00:29]} 8. Nbd2 {[%emt 0:00:54]} Re8 {[%emt 0:01:18]} 9. Ne5 {[%emt 0:00:57]} Bxe5 {[%emt 0:01:50]} 10. dxe5 {[%emt 0:00:13]} Nd7 {[%emt 0:00:48]} 11. Qh5 {[%emt 0:13:23]} g6 {[%emt 0:03:15]} 12. Qh6 {[%emt 0:00:50]} Ncxe5 {[%emt 0:01:24]} 13. Bc2 {[%emt 0:00:35]} Ng4 {[%emt 0:06:24]} 14. Qh4 {[%emt 0:01:12]} Qxh4 {[%emt 0:00:56]} 15. Bxh4 {[%emt 0:00:08]} Kg7 {[%emt 0:03:03]} 16. Nf3 {[%emt 0:00:43]} h6 {[%emt 0:01:27]} 17. h3 {[%emt 0:00:19]} Nge5 {[%emt 0:00:31]} 18. Nxe5 {[%emt 0:01:01]} Nxe5 {[%emt 0:00:10]} 19. Rd1 {[%emt 0:00:16]} b6 {[%emt 0:02:05]} 20. O-O {[%emt 0:02:00]} Bb7 {[%emt 0:01:31]} 21. Rfe1 {[%emt 0:01:46]} g5 {[%emt 0:02:09]} 22. Bg3 {[%emt 0:00:13]} Kf6 {[%emt 0:02:28]} 23. e4 {[%emt 0:02:36]} Ng6 {[%emt 0:05:59]} 24. exd5 {[%emt 0:03:18]} exd5 {[%emt 0:03:54]} 25. Bb3 {[%emt 0:02:26]} Rxe1+ {[%emt 0:01:54]} 26. Rxe1 {[%emt 0:00:17]} h5 {[%emt 0:02:11]} 27. Ba4 {[%emt 0:01:41]} h4 {[%emt 0:02:30]} 28. Bh2 {[%emt 0:00:20]} a6 {[%emt 0:02:24]} 29. Bc2 {[%emt 0:03:22]} Bc6 {[%emt 0:04:32]} 30. Bxg6 {[%emt 0:00:29]} Kxg6 {[%emt 0:00:47]} 31. Re7 {[%emt 0:00:37]} Rg8 {[%emt 0:06:33]} 32. Bc7 {[%emt 0:02:36]} Kf6 {[%emt 0:02:10]} 33. Re1 {[%emt 0:00:39]} b5 {[%emt 0:00:36]} 34. Bb6 {[%emt 0:00:12]} c4 {[%emt 0:00:54]} 35. Bd4+ {[%emt 0:00:13]} Kf5 {[%emt 0:01:26]} 36. a3 {[%emt 0:00:32]} Re8 {[%emt 0:01:24]} 37. Rxe8 {[%emt 0:01:51]} Bxe8 {[%emt 0:38:41]} 38. g3 {[%emt 0:00:22]} hxg3 {[%emt 0:00:00]} 39. fxg3 {[%emt 0:00:19]} Ke4 {[%emt 0:00:00]} 40. Bf6 {[%emt 0:01:02]} Bd7 {[%emt 0:00:00]} 41. g4 {[%emt 0:32:09]} Kf4 {[%emt 0:00:00]} 42. Kf2 {[%emt 0:01:01]} Bc6 {[%emt 0:00:00]} 43. Bd4 {[%emt 0:01:25]} Bd7 {[%emt 0:00:00]} 44. Bf6 {[%emt 0:00:22]} Be6 {[%emt 0:00:37]} 45. Bd4 {[%emt 0:00:29]} f5 {[%emt 0:00:16]} 46. gxf5 {[%emt 0:00:54]} Bxf5 {[%emt 0:00:17]} 47. Be3+ {[%emt 0:01:34]} Ke4 {[%emt 0:00:51]} 48. Ke2 {[%emt 0:00:20]} Bxh3 {[%emt 0:00:58]} 49. Bxg5 {[%emt 0:02:12]} a5 {[%emt 0:01:30]} 50. Kd2 {[%emt 0:00:56]} b4 {[%emt 0:01:44]} 51. axb4 {[%emt 0:00:16]} axb4 {[%emt 0:00:25]} 52. Bf6 {[%emt 0:00:34]} Bf1 {[%emt 0:02:10]} 53. Bd4 {[%emt 0:00:17]} Bd3 {[%emt 0:00:35]} 54. Bf6 {[%emt 0:00:41]} Kf5 {[%emt 0:00:59]} 55. Bd4 {[%emt 0:00:10]} Ke6 {[%emt 0:00:19]} 56. Bc5 {[%emt 0:01:47]} Kd7 {[%emt 0:01:23]} 57. Bxb4 {[%emt 0:01:05]} Kc6 {[%emt 0:00:03]} 58. Be7 {[%emt 0:01:02]} Kb5 {[%emt 0:00:04]} 59. Bf6 {[%emt 0:01:40]} Ka4 {[%emt 0:00:08]} 60. Kc1 {[%emt 0:00:15]} 1/2-1/2

[Event "Cape Verde Championship 2019"]
[Site "Ribeira Brava"]
[Date "2019.12.09"]
[Round "7.3"]
[White "Barros, Arlindo"]
[Black "Fernandes, Luis De Pina"]
[Result "1-0"]
[ECO "C56"]
[WhiteElo "1628"]
[BlackElo "1641"]
[Annotator "NA RC"]
[PlyCount "47"]
[EventDate "2019.12.05"]
[EventType "tourn"]
[EventCountry "KAP"]
[SourceTitle "playchess.com"]
[Source "ChessBase"]
[SourceQuality "1"]
[TimeControl "40/5400+30:1800+30"]

1. e4 {[%emt 0:00:02]} e5 {[%emt 0:00:00]} 2. Bc4 {[%emt 0:00:11]} Bc5 {[%emt 0:00:09]} 3. Nf3 {[%emt 0:01:04]} Nc6 {[%emt 0:00:18]} 4. O-O {[%emt 0:00:15]} Nf6 {[%emt 0:00:10]} 5. d4 {[%emt 0:00:42]} exd4 {[%emt 0:01:29]} 6. e5 {[%emt 0:00:09]} d5 {[%emt 0:03:09]} 7. exf6 {[%emt 0:00:08]} dxc4 {[%emt 0:00:27]} 8. Re1+ {[%emt 0:00:13]} Be6 {[%emt 0:00:08]} 9. Ng5 {[%emt 0:00:23]} Qxf6 {[%emt 0:01:08]} 10. Nxe6 {[%emt 0:00:13]} fxe6 {[%emt 0:01:21]} 11. Qh5+ {[%emt 0:00:12]} Qf7 {[%emt 0:05:24]} 12. Qxc5 {[%emt 0:00:37]} O-O-O {[%emt 0:01:16]} 13. Qxc4 {[%emt 0:00:51]} Rhe8 {[%emt 0:02:42]} 14. Bg5 {[%emt 0:01:01]} Rd7 {[%emt 0:00:01]} 15. Nd2 {[%emt 0:02:07]} h6 {[%emt 0:02:50]} 16. Bh4 {[%emt 0:00:51]} Qf4 {[%emt 0:02:57]} 17. Nf3 {[%emt 0:00:15]} e5 {[%emt 0:06:54]} 18. Bg3 {[%emt 0:00:44]} Qf5 {[%emt 0:03:03]} 19. Rad1 {[%emt 0:00:32]} e4 {[%emt 0:00:36]} 20. Nxd4 {[%emt 0:01:29]} Nxd4 {[%emt 0:03:25]} 21. Rxd4 {[%emt 0:00:29]} Qa5 {[%emt 0:00:05]} 22. Red1 {[%emt 0:02:12]} Red8 {[%emt 0:04:12]} 23. Rxd7 {[%emt 0:00:50]} Rxd7 {[%emt 0:00:25]} 24. Qg8+ {[%emt 0:00:08]} 1-0

[Event "Cape Verde Championship 2019"]
[Site "Ribeira Brava"]
[Date "2019.12.09"]
[Round "7.4"]
[White "Monteiro, Antonio David Cabral"]
[Black "Barros, Luis"]
[Result "0-1"]
[ECO "A17"]
[WhiteElo "1779"]
[BlackElo "1603"]
[Annotator "NA RC"]
[PlyCount "136"]
[EventDate "2019.12.05"]
[EventType "tourn"]
[EventCountry "KAP"]
[SourceTitle "playchess.com"]
[Source "ChessBase"]
[SourceQuality "1"]
[TimeControl "40/5400+30:1800+30"]

1. c4 {[%emt 0:00:00]} e6 {[%emt 0:00:15]} 2. Nc3 {[%emt 0:03:20]} Nf6 {[%emt 0:00:17]} 3. g3 {[%emt 0:00:22]} c6 {[%emt 0:00:58]} 4. e4 {[%emt 0:01:20]} d5 {[%emt 0:01:04]} 5. e5 {[%emt 0:02:32]} Nfd7 {[%emt 0:00:57]} 6. d4 {[%emt 0:00:26]} dxc4 {[%emt 0:02:32]} 7. Bxc4 {[%emt 0:00:59]} b5 {[%emt 0:00:43]} 8. Bf1 {[%emt 0:01:26]} Nb6 {[%emt 0:04:29]} 9. Nf3 {[%emt 0:01:48]} Bb7 {[%emt 0:01:36]} 10. Bg2 {[%emt 0:00:19]} Bb4 {[%emt 0:00:38]} 11. a3 {[%emt 0:02:27]} Bxc3+ {[%emt 0:00:46]} 12. bxc3 {[%emt 0:07:31]} Na4 {[%emt 0:01:07]} 13. Qc2 {[%emt 0:02:34]} c5 {[%emt 0:02:22]} 14. O-O {[%emt 0:01:20]} Nd7 {[%emt 0:02:47]} 15. Bg5 {[%emt 0:04:52]} f6 {[%emt 0:02:37]} 16. exf6 {[%emt 0:04:43]} Nxf6 {[%emt 0:01:00]} 17. Rfe1 {[%emt 0:03:09]} O-O {[%emt 0:01:14]} 18. Rad1 {[%emt 0:03:33]} c4 {[%emt 0:02:13]} 19. Re5 {[%emt 0:06:58]} Qd7 {[%emt 0:04:28]} 20. Rde1 {[%emt 0:06:30]} Bd5 {[%emt 0:03:21]} 21. Nh4 {[%emt 0:03:12]} Bxg2 {[%emt 0:04:36]} 22. Nxg2 {[%emt 0:01:42]} Ng4 {[%emt 0:01:20]} 23. R5e2 {[%emt 0:04:09]} Rf3 {[%emt 0:00:45]} 24. Qe4 {[%emt 0:02:10]} Raf8 {[%emt 0:06:33]} 25. Qxg4 {[%emt 0:00:59]} Nxc3 {[%emt 0:00:42]} 26. Qxe6+ {[%emt 0:01:11]} Qxe6 {[%emt 0:00:46]} 27. Rxe6 {[%emt 0:00:13]} Rxf2 {[%emt 0:00:24]} 28. Bf4 {[%emt 0:01:38]} Ra2 {[%emt 0:01:10]} 29. h3 {[%emt 0:03:28]} Nd5 {[%emt 0:03:08]} 30. Bd6 {[%emt 0:07:03]} Rc8 {[%emt 0:02:28]} 31. Bc5 {[%emt 0:03:41]} a5 {[%emt 0:01:46]} 32. Nf4 {[%emt 0:02:11]} Nf6 {[%emt 0:03:22]} 33. Ra6 {[%emt 0:03:19]} c3 {[%emt 0:01:44]} 34. Rxa5 {[%emt 0:10:08]} Rb2 {[%emt 0:00:45]} 35. Nd3 {[%emt 0:03:08]} Rd2 {[%emt 0:01:32]} 36. Nb4 {[%emt 0:00:31]} Nh5 {[%emt 0:02:31]} 37. Rxb5 {[%emt 0:01:58]} Nxg3 {[%emt 0:01:14]} 38. Bd6 {[%emt 0:00:05]} Ne2+ {[%emt 0:01:19]} 39. Kh1 {[%emt 0:00:30]} c2 {[%emt 0:01:31]} 40. Nxc2 {[%emt 0:00:04]} Rcxc2 {[%emt 0:01:05]} 41. Be5 {[%emt 0:31:49]} Rc3 {[%emt 0:35:19]} 42. Rb8+ {[%emt 0:00:00]} Kf7 {[%emt 0:00:00]} 43. Rb7+ {[%emt 0:00:00]} Ke6 {[%emt 0:00:00]} 44. Rb6+ {[%emt 0:00:00]} Kf5 {[%emt 0:00:00]} 45. Rxe2 {[%emt 0:00:00]} Rc1+ {[%emt 0:00:00]} 46. Kg2 {[%emt 0:00:00]} Rxe2+ {[%emt 0:00:00]} 47. Kf3 {[%emt 0:00:00]} Rcc2 {[%emt 0:00:00]} 48. Rb1 {[%emt 0:00:00]} Rf2+ {[%emt 0:00:00]} 49. Ke3 {[%emt 0:00:00]} Rfe2+ {[%emt 0:00:00]} 50. Kd3 {[%emt 0:00:00]} Rcd2+ {[%emt 0:00:00]} 51. Kc4 {[%emt 0:00:00]} Ke4 {[%emt 0:00:00]} 52. a4 {[%emt 0:00:00]} Rc2+ {[%emt 0:00:00]} 53. Kb5 {[%emt 0:00:00]} Rc8 {[%emt 0:00:00]} 54. a5 {[%emt 0:00:00]} Kd5 {[%emt 0:00:00]} 55. a6 {[%emt 0:00:00]} Rxe5 {[%emt 0:00:00]} 56. dxe5 {[%emt 0:00:00]} Rb8+ {[%emt 0:00:00]} 57. Ka5 {[%emt 0:00:00]} Rxb1 {[%emt 0:00:00]} 58. a7 {[%emt 0:00:00]} Kc5 {[%emt 0:00:00]} 59. Ka6 {[%emt 0:00:00]} Ra1+ {[%emt 0:00:00]} 60. Kb7 {[%emt 0:00:00]} Kd5 {[%emt 0:00:00]} 61. a8=Q {[%emt 0:11:12]} Rxa8 {[%emt 0:00:00]} 62. Kxa8 {[%emt 0:00:00]} Kxe5 {[%emt 0:00:00]} 63. Kb7 {[%emt 0:00:00]} Kf4 {[%emt 0:00:00]} 64. Kc6 {[%emt 0:00:00]} Kg3 {[%emt 0:00:00]} 65. Kd5 {[%emt 0:00:00]} g5 {[%emt 0:00:00]} 66. Ke4 {[%emt 0:00:00]} Kxh3 {[%emt 0:00:00]} 67. Kf3 {[%emt 0:00:00]} h5 {[%emt 0:00:00]} 68. Kf2 {[%emt 0:00:00]} Kh2 {[%emt 0:44:36]} 0-1